Cogmind - Beta 15 @@@ ROGUE MODE // 2025.09.12 @ 20:10:02 Player: Trick Result: Destroyed by 8R-AWN with 8R-AWN's Boregun Performance ------------- Evolutions (0) 0 Regions Visited (3) 600 Robots Destroyed (25) 125 Value Destroyed (361) 361 Prototype IDs (0) 0 Alien Tech Used (0) 0 Bonus (0) 0 TOTAL SCORE: 1086 Bonus ------- None Cogmind --------- Core Integrity 0/250 Matter 209/300 Energy 250/250 System Corruption 5% Temperature Cool (0) Movement Flying (117) Ox1 Location -10/Exiles Parts ------- > --- POWER (1) -------- Ion Engine > --- PROPULSION (2) --- Flight Unit Flight Unit > --- UTILITY (2) ------ (None) > --- WEAPON (2) ------- Rocket Launcher > --- INVENTORY (5) ---- Small Matter Pod (50) Salvage Targeting Computer ECM Suite Medium Laser Peak State ------------ > --- POWER ------------ Light Ion Engine > --- PROPULSION ------- Flight Unit Flight Unit > --- UTILITY ---------- Visual Processing Unit Seismic Detector > --- WEAPON ----------- EM Pulse Gun EMP Blaster > --- INVENTORY -------- Flight Unit Disposable Heat Sink Small Matter Pod Salvage Targeting Computer Medium Laser [Rating: 9] Favorites ----------- Power Light Ion Engine Engine Light Ion Engine Propulsion Flight Unit Leg Aluminum Leg Flight Unit Flight Unit Utility Visual Processing Unit Device Seismic Detector Storage Small Storage Unit Processor Visual Processing Unit Weapon Medium Laser Energy Gun Medium Laser Ballistic Gun Assault Rifle Launcher Rocket Launcher Build | -11 -10 -10 -10 ------- Run | Yrd Mat Min Exi Slots Evolved . | . . . . Power . | . . . . Propulsion . | . . . . Utility . | . . . . Weapon . | . . . . Parts Attached 26 | 5 17 4 . Power 6 | 1 3 2 . Engine 6 | 1 3 2 . Core . | . . . . Reactor . | . . . . Propulsion 5 | 2 3 . . Treads . | . . . . Leg 2 | 2 . . . Wheel . | . . . . Hover . | . . . . Flight 3 | . 3 . . Utility 5 | . 4 1 . Device 2 | . 1 1 . Storage 2 | . 2 . . Processor 1 | . 1 . . Hackware . | . . . . Protection . | . . . . Artifact . | . . . . Weapon 10 | 2 7 1 . Energy Gun 4 | 1 3 . . Energy Cannon . | . . . . Ballistic Gun 2 | 1 1 . . Ballistic Cannon . | . . . . Launcher 4 | . 3 1 . Special Weapon . | . . . . Impact Weapon . | . . . . Slashing Weapon . | . . . . Piercing Weapon . | . . . . Special Melee Weapon . | . . . . Unidentified Prototypes . | . . . . Corrupted Parts 1 | . 1 . . System Corruption 5 | . 5 . . Parts Lost 7 | . 6 1 . Power 1 | . 1 . . Propulsion 3 | . 2 1 . Utility . | . . . . Weapon 3 | . 3 . . Highest Loss Streak 3 | . 3 1 . To Critical Strikes . | . . . . Average Backups 3 | 2 2 4 4 Power . | . . . . Propulsion . | 1 . . . Utility 1 | . 1 3 3 Weapon . | . . . 1 Tool/Special . | . . . . Unused Backups 8 | . 5 . 3 Power . | . . . . Propulsion 3 | . 3 . . Utility 5 | . 2 . 3 Weapon . | . . . . Tool/Special . | . . . . Average Slot Usage (%) 72 | . 76 69 57 Engine 10 | . 10 8 14 Leg 3 | . 5 . . Flight 23 | . 20 27 28 Device 4 | . 4 5 . Storage 4 | . 6 . . Processor 4 | . 4 5 . Energy Gun 12 | . 13 11 . Ballistic Gun 4 | . 7 . . Launcher 5 | . 2 8 14 Peak Build Rating 9 | 5 9 9 5 Average Rating 5 | 2 5 5 5 On Entrance 4 | . 5 7 5 Naked Turns . | . . . . Heaviest Build 16 | 7 16 10 9 Greatest Support 20 | 20 20 8 8 Greatest Overweight (x) 2 | . 2 1 1 Average Overweight (x) . | . . . 1 Largest Inventory Capacity 8 | 5 8 5 5 Average Capacity 5 | 5 5 5 5 Most Carried 5 | 5 5 5 5 Average Carried 3 | 2 2 4 4 Final Capacity 5 | 5 5 5 5 Final Carried 5 | 5 5 5 4 Class Distribution -------------------- 64% | Mutant 35% | Scavenger-Mutant Dominant Class ---------------- Mutant | -10/Materials Mutant | -10/Mines Mutant | -10/Exiles Resources | -11 -10 -10 -10 ----------- Run | Yrd Mat Min Exi Matter Collected 691 | 259 336 96 . Remotely . | . . . . Salvage Created 522 | 34 410 78 . Parts 39 | 3 24 12 . Haulers Intercepted . | . . . . Recyclers Shooed . | . . . . Parts Field Recycled . | . . . . Retrieved Matter . | . . . . Parts Self-Destructed . | . . . . Prevented . | . . . . Kills | -11 -10 -10 -10 ------- Run | Yrd Mat Min Exi Combat Hostiles Destroyed 18 | 1 9 8 . Guns 11 | 1 7 3 . AOE 6 | . 1 5 . Classes Destroyed 6 | 1 5 . . Worker 2 | . 1 1 . Builder 1 | . 1 . . Recycler 1 | . 1 . . Watcher 3 | . 3 . . Swarmer 13 | . 5 8 . Grunt 5 | 1 4 . . Best Kill Streak 6 | 1 4 6 . Combat Bots Only 5 | 1 3 5 . Max Kills in Single Turn 2 | 1 2 2 . Gunslinging . | . . . . Exploded 2 | . 1 2 . Melee . | . . . . Uniques/NPCs Destroyed . | . . . . Combat | -11 -10 -10 -10 -------- Run | Yrd Mat Min Exi Hostile Shots Fired 129 | 4 109 14 2 Missed 39 | 1 29 9 . Hits 90 | 3 80 5 2 Projectile 90 | 3 80 5 2 Critical Strikes 1 | . . . 1 Damage Taken 912 | 35 760 78 39 Core 260 | 12 175 34 39 Absorbed by Shields . | . . . . Core Remaining (%) 95 | 95 . . . Volleys Fired 70 | 3 52 11 4 Largest 2 | 2 2 2 1 Hottest 90 | 60 90 90 33 Shots Fired 116 | 6 87 18 5 Gun 103 | 6 83 14 . Cannon . | . . . . Launcher 13 | . 4 4 5 Special . | . . . . Kinetic 34 | 3 31 . . Thermal 43 | . 29 14 . Explosive 9 | . . 4 5 Electromagnetic 30 | 3 27 . . Robot Hit Streak 8 | 3 8 4 . Robot Miss Streak 4 | 3 4 3 . Penetration Max . | . . . . Secondary Targets 2 | . 1 1 . Max Gunslinging Chain 1 | . 1 1 . Shots Hit Robots 52 | 3 40 9 . Core Hits 29 | 3 16 10 . Critical Kills . | . . . . Critical Parts Destroyed 1 | . 1 . . Critical Strikes 2 | . 1 1 . Burn 1 | . . 1 . Destroy 1 | . 1 . . Melee Attacks . | . . . . Impact . | . . . . Slashing . | . . . . Piercing . | . . . . Sneak Attacks . | . . . . Combat Hostiles . | . . . . Follow-up Attacks . | . . . . Damage Inflicted 1002 | 42 630 330 . Guns 647 | 39 513 95 . Cannons . | . . . . Explosions 350 | . 115 235 . Melee . | . . . . Ramming 5 | 3 2 . . Kinetic 165 | 11 154 . . Thermal 291 | . 196 95 . Explosive 235 | . . 235 . Electromagnetic 306 | 28 278 . . Impact . | . . . . Slashing . | . . . . Piercing . | . . . . Highest Corruption 5 | . 5 5 5 Average Corruption 5 | . 5 5 5 Corruption Purged . | . . . . Corruption Blocked . | . . . . Effects 12 | . 2 8 2 Matter Fused 8 | . 1 6 1 Energy Discharges 2 | . 1 1 . Data Loss (minor) 1 | . . 1 . Misfires 1 | . . . 1 Overload Shots . | . . . . Overflow Damage 36 | . 8 28 . Projectiles . | . . . . Explosions 36 | . 8 28 . Melee . | . . . . Knockbacks . | . . . . Impact . | . . . . Kinetic . | . . . . Secondary . | . . . . Self-Inflicted Damage 105 | . 62 43 . Shots 5 | . 3 2 . Rammed . | . . . . Targets Rammed 2 | 1 1 . . Kicked 2 | 1 1 . . Crushed . | . . . . Highest Temperature 234 | 18 234 79 . Average Temperature 65 | 13 76 40 . Received Heat Transfer 162 | 18 144 . . Siege Activations . | . . . . Martial Activations . | . . . . Shielding Activations . | . . . . Robots Disrupted . | . . . . Combat Hostiles . | . . . . Robots Corrupted . | . . . . Combat Hostiles . | . . . . Parts Fried . | . . . . Impact Corruptions . | . . . . Robots Melted 1 | . 1 . . Combat Hostiles 1 | . 1 . . Parts Melted 3 | . 3 . . Heat Transferred 867 | . 533 334 . Parts Sabotaged . | . . . . Parts Stolen . | . . . . Parts Stripped . | . . . . Power Chain Reactions . | . . . . Alert | -11 -10 -10 -10 ------- Run | Yrd Mat Min Exi Maximum Alert Level . | . . . . Low Security (%) 100 | 100 100 100 . Level 1 . | . . . . Level 2 . | . . . . Level 3 . | . . . . Level 4 . | . . . . Level 5 . | . . . . High Security . | . . . . Max Security . | . . . . Peak Influence 166 | 20 73 166 . Initial 28 | . 6 28 . Average 31 | 1 19 72 . Influence Increases 576 | 20 330 226 . Destroy 0b10 Robot/C 360 | 20 180 160 . Destroy 0b10 Robot/NC 35 | . 30 5 . Destroy Leader 76 | . 46 30 . Successful Hack 44 | . 44 . . Destroy Structure 31 | . . 31 . Lose Combat Pursuer 30 | . 30 . . Influence Decreases 576 | 10 267 183 116 Entered New Map 165 | . 4 45 116 Time Decay 348 | 10 210 128 . Lost Part 63 | . 53 10 . Squads Dispatched 5 | . 5 . . Investigation 4 | . 4 . . Extermination . | . . . . Reinforcement 1 | . 1 . . Assault . | . . . . Garrison . | . . . . Intercept . | . . . . Searches Triggered . | . . . . Construction Impeded . | . . . . Haulers Reinforced . | . . . . Active Scanning Responses . | . . . . Cargo Convoy Interrupts . | . . . . Stealth | -11 -10 -10 -10 --------- Run | Yrd Mat Min Exi Distress Signals 1 | . 1 . . Communications Jammed . | . . . . Distress Signals . | . . . . Times Spotted 29 | 1 19 9 . Peak Tracking Total 9 | 1 4 3 9 Tactical Retreats 2 | . 2 . . Traps | -11 -10 -10 -10 ------- Run | Yrd Mat Min Exi Traps Triggered 3 | . 3 . . Indirectly . | . . . . Trap Hack Attempts . | . . . . Triggered . | . . . . Disarmed . | . . . . Reprogrammed . | . . . . Reused . | . . . . Traps Extracted . | . . . . Installed . | . . . . Triggered . | . . . . Machines | -11 -10 -10 -10 ---------- Run | Yrd Mat Min Exi Machines Disabled 3 | . . . 3 Max in Single Turn 2 | . . . 2 Machines Repaired . | . . . . Machines Dismantled . | . . . . Machines Sabotaged . | . . . . Overloaded Fab Kills . | . . . . Hacking | -11 -10 -10 -10 --------- Run | Yrd Mat Min Exi Machines Accessed 6 | . 6 . . Terminals 4 | . 4 . . Fabricators . | . . . . Repair Stations 1 | . 1 . . Recycling Units 1 | . 1 . . Scanalyzers . | . . . . Garrison Access . | . . . . Total Hacks 22 | . 22 . . Successful 16 | . 16 . . Failed 6 | . 6 . . Catastrophic 2 | . 2 . . Database Lockouts . | . . . . Manual . | . . . . Terminals 13 | . 13 . . Fabricators . | . . . . Repair Stations 3 | . 3 . . Recycling Units 6 | . 6 . . Scanalyzers . | . . . . Garrison Access . | . . . . Terminal Hacks 8 | . 8 . . Record 2 | . 2 . . Dispatch Records 2 | . 2 . . Maintenance Status 1 | . 1 . . Registered Components 1 | . 1 . . Registered Prototypes 1 | . 1 . . Zone Layout 1 | . 1 . . Fabricator Hacks . | . . . . Repair Station Hacks 2 | . 2 . . Scan Component 2 | . 2 . . Recycling Unit Hacks 6 | . 6 . . Recycle Component 1 | . 1 . . Process 1 | . 1 . . Report Inventory 2 | . 2 . . Retrieve Matter 1 | . 1 . . Retrieve Components 1 | . 1 . . Scanalyzer . | . . . . Garrison Access Hacks . | . . . . Unauthorized Hacks . | . . . . Terminals . | . . . . Fabricators . | . . . . Repair Stations . | . . . . Recycling Units . | . . . . Scanalyzers . | . . . . Garrison Access . | . . . . Data Cores Recovered . | . . . . Used . | . . . . Hacking Detections 6 | . 6 . . Full Trace Events 5 | . 5 . . Feedback Events . | . . . . Feedback Blocked . | . . . . Robot Schematics Acquired . | . . . . Robots Built . | . . . . Authchips . | . . . . Time . | . . . . Total Robot Build Rating . | . . . . Part Schematics Acquired . | . . . . Parts Built . | . . . . Authchips . | . . . . Time . | . . . . Total Part Build Rating . | . . . . Parts Repaired . | . . . . Time . | . . . . Parts Recycled 1 | . 1 . . Recycled Matter . | . . . . Retrieved Matter . | . . . . Retrieved Components 6 | . 6 . . Parts Scanalyzed . | . . . . Part Schematics Acquired . | . . . . Parts Damaged . | . . . . Bothacking | -11 -10 -10 -10 ------------ Run | Yrd Mat Min Exi Used RIF Installer . | . . . . Robots Hacked . | . . . . Non-combat . | . . . . Combat . | . . . . Robot Hacks Applied . | . . . . Relay Couplers Released . | . . . . Fabnet Peak Effective % . | . . . . Robots Rewired . | . . . . Allies Hacked . | . . . . Hacks Repelled . | . . . . Allies | -11 -10 -10 -10 -------- Run | Yrd Mat Min Exi Total Allies . | . . . . Largest Group . | . . . . Highest-Rated Group . | . . . . Highest-Rated Ally . | . . . . Total Orders . | . . . . Ally Attacks . | . . . . Total Damage . | . . . . Kills . | . . . . Allies Corrupted . | . . . . Allies Melted . | . . . . Intel | -11 -10 -10 -10 ------- Run | Yrd Mat Min Exi Active Infowar (turns) 324 | . 198 126 . Optics 324 | . 198 126 . Seismic 323 | . 197 126 . Robot Analysis Total . | . . . . Derelict Logs Recovered 1 | . . 1 . Drone Launches . | . . . . Drone Recoveries . | . . . . Exploration | -11 -10 -10 -10 ------------- Run | Yrd Mat Min Exi Turns Passed 1204 | 164 649 317 74 Spaces Moved 1492 | 163 744 530 55 Core 116 | 91 25 . . Treads . | . . . . Legs 117 | 72 45 . . Wheels . | . . . . Hover . | . . . . Flight 1259 | . 674 530 55 Fastest Speed 37 | 50 37 37 117 Average Speed 61 | 80 60 52 117 Slowest Speed 150 | 120 150 117 117 Overloaded Moves . | . . . . Propulsion Burnouts . | . . . . Robots Hopped 8 | . 4 4 . Potential Cave-ins . | . . . . Cave-ins Triggered . | . . . . Exploration Rate (%) 46 | 5 77 94 9 Regions Visited 3 Branch Regions 2 Pre-discovered Areas 1 | . . 1 . Known Exits Taken . | . . . . Unknown Exits Taken 3 | 1 1 1 . Scrap Searched 1 | . . 1 . Spaces Dug . | . . . . Terrain Destroyed 85 | . . 40 45 Melee . | . . . . Projectile . | . . . . AOE 85 | . . 40 45 Terrain Rammed . | . . . . Walls Destroyed . | . . . . Machines Disabled . | . . . . Actions | -11 -10 -10 -10 --------- Run | Yrd Mat Min Exi Total 1658 | 189 855 550 64 Wait 21 | 8 10 1 2 Move 1473 | 162 735 521 55 Hop 8 | . 4 4 . Pick Up 37 | 10 23 3 1 Fast Attach . | . . . . Attach 25 | 5 17 3 . Detach 1 | . . 1 . Swap 5 | . 3 2 . Drop 16 | . 10 4 2 Fire 70 | 3 52 11 4 Melee . | . . . . Ram . | . . . . Kick 2 | 1 1 . . Crush . | . . . . Escape Stasis . | . . . . Rewire . | . . . . Trap . | . . . . Miscellaneous . | . . . . Route ------- -11/Scrapyard -10/Materials (discovered 4 exits: [*Mat x3] / [*Min]) -10/Mines (discovered 3 exits: [*Mat x2] / [*Exi]) -10/Exiles History --------- Turn | Location | Event 2 | -11/Scrapyard | Met Revision 17 134 | -11/Scrapyard | Discovered new exit (range 8) 165 | -11/Scrapyard | Entered Materials 312 | -10/Materials | Build established: Mutant 323 | -10/Materials | Lost 3 parts (2n1w) 430 | -10/Materials | Discovered new exit (range 9) 521 | -10/Materials | Discovered new exit (range 15) 674 | -10/Materials | Core integrity fell below 50% 772 | -10/Materials | Discovered new exit (range 17) 807 | -10/Materials | Discovered new exit (range 16) 814 | -10/Materials | Entered Mines 831 | -10/Mines | Met a Derelict bent on vengeance 912 | -10/Mines | Build established: Scavenger-Mutant 926 | -10/Mines | Received a Rocket Launcher from a helpful Derelict 965 | -10/Mines | Discovered new exit (range 7) 988 | -10/Mines | Learned location of Recycling (-7) 1006 | -10/Mines | Discovered new exit (range 7) 1011 | -10/Mines | Found DCF Scrap (11 items) 1014 | -10/Mines | Core integrity fell below 20% 1121 | -10/Mines | Deemed a non-threat by the Exiles lab entrance 1122 | -10/Mines | Discovered new exit (range 5) 1131 | -10/Mines | Entered Exiles 1181 | -10/Exiles | Met 8R-AWN 1202 | -10/Exiles | Attacked by the Exiles 1205 | -10/Exiles | Destroyed by 8R-AWN with 8R-AWN's Boregun Last Messages --------------- LOCATION=UNKNOWN GOAL=ESCAPE 01159_ System corrupted: Matter fused (-5). 01178_ Dropped Lgt. Ion Engine. 01178_ Acquired Rigged Nuclear Core. 8R-AWN: Oh you look... interesting. The Exiles will probably want to check you out. Keep your grabby things to yourself, though. I've got my sensors on you. 01181_ Dropped Rigged Nuclear Core. 01188_ System corrupted: FCS attempts to trigger Rocket Launcher. 01188_ System corrupted: Rocket Launcher misfires. [Achievement: Maybe Next Time I'll Detach My Launcher] 01201_ Machine disabled. 01202_ EXILES: Hostile robot within lab perimeter. Defensive protocols time, folks! 01205_ Penetrated by HV Slug. Map ----- +----------------------------------------------------+ | ?????????????????????????????????????????????????? | | ?????????????????????????????????????????????????? | | ?????????????????????????????????????????????????? | | ?????????????????????????????????????????????????? | | ?????????????????????????????????????????????????? | | ?????????????????????????????????????????????????? | | ?????????????????????????????????????????????????? | | ?????????????????????????????????????????????????? | | ?????????????????????????????????????????????????? | | ?????????????????????????????????????????????????? | | ???????????????????????????? ????????????????????? | | ???????????????????????????? ?????????????????? | | ???????????????????????????? ?????????????????? | | ???????????????????????????# #?????????????????? | | ??????????????????????????# ##????????????????? | | ?????????????????????????# #????????????????? | | ?????????????????????????# #????????????????? | | ?????#??????????????????## ?????????????????? | | ????#" ???????????????## #??????????????????? | | ???##" ??????????????# #??????????????????? | | ??## #??????????### #???????????????????? | | ?? ? ######## #???????????????????? | | ?# "" # #????????????????????? | | ? * ##???????????????????? | | ???????# #???????????????????? | | ????????# * @ ##??????????????????? | | ???????#"" #????????????????? | | ???????### * #?????????????? | | ??????????? ##### #?????????????? | | ???????????## ###??????### #?????????????? | | ?????????????????????????### #?????????????? | | ???????????????????????????# #?????????????? | | ????????????????????????????# ##????????????? | | ????????????????????????????#### ###??????????? | | ???????????????????????????????# ##?????????? | | ???????????????????????????????## ###???????? | | ????????????????????????????????### #???????? | | ??????????????????????????????????# ##???????? | | ??????????????????????????????????## ##????????? | | ???????????????????????????????????#####?????????? | | ?????????????????????????????????????????????????? | | ?????????????????????????????????????????????????? | | ?????????????????????????????????????????????????? | | ?????????????????????????????????????????????????? | | ?????????????????????????????????????????????????? | | ?????????????????????????????????????????????????? | | ?????????????????????????????????????????????????? | | ?????????????????????????????????????????????????? | | ?????????????????????????????????????????????????? | | ?????????????????????????????????????????????????? | +----------------------------------------------------+ Best States ------------- Heat Dissipation 25 Energy Generation 10 Energy Capacity 250 Matter Stores 300 Matter Capacity 400 Sight Range 18 Terrain Scan Density 10 Evasion (%) 62 Item Schematics ----------------- None Robot Schematics ------------------ None Fabricated ------------ Nothing Repaired ---------- Nothing Alien Tech Used ----------------- None Achievements -------------- It's Just You Let's See Who's Tougher Maybe Next Time I'll Detach My Launcher Uninvited Guest Challenges ------------ None Game ------ Seed PiercingVortexDiverter Manual? 0 Play Time 00:19:14 Cumulative 0.5 hours Start 2025.09.12 @ 19:51:10 End 2025.09.12 @ 20:10:02 Sessions 1 Manual Loads 0 Difficulty Rogue Special Mode None Game No. 3 Rogue 1 Adventurer 2 Explorer 0 Win Type - Total 0 Types 0/0/0/0/0/0/0/0/0/0 Lore% 0 Gallery% 2 Achievement% 3 Wizard Run 0 Options --------- Layout 1 ASCII 0 Keyboard 0 Movement Numpad Keybinds 0 Fullscreen 1 Font 32/SmallcapsGlow Map View 50x35 Zoom Use 1% Tactical HUD 1 Map Filters NONE Filters NONE Steam 1 RUN: 33f864d1-8dda-41ca-be4a-9c78828c628c